[Event "*** Titled Tuesday Blitz"]
[Site "Chess.com"]
[Date "2020.04.21"]
[Round "6"]
[White "LucaBrasi1968"]
[Black "eldidi20"]
[Result "1-0"]
[WhiteElo "2496"]
[BlackElo "2176"]
[TimeControl "180+1"]
[EndTime "11:08:15 PDT"]
[Termination "LucaBrasi1968 won by resignation"]

1. e4 {[%clk 0:03:00.9]} 1... c6 {[%clk 0:03:00]} 2. d4 {[%clk 0:02:59.1]} 2...
d5 {[%clk 0:03:00.2]} 3. Nd2 {[%clk 0:02:59.7]} 3... dxe4 {[%clk 0:03:00.4]} 4.
Nxe4 {[%clk 0:03:00.6]} 4... Nf6 {[%clk 0:03:01.2]} 5. Nxf6+ {[%clk 0:03:00.4]}
5... exf6 {[%clk 0:03:02.1]} 6. Bc4 {[%clk 0:02:59.8]} 6... Bd6 {[%clk
0:03:02.3]} 7. Qe2+ {[%clk 0:02:59.9]} 7... Be7 {[%clk 0:02:47.3]} 8. Nf3 {[%clk
0:02:53.3]} 8... O-O {[%clk 0:02:47.1]} 9. O-O {[%clk 0:02:52.8]} 9... Bg4
{[%clk 0:02:46]} 10. h3 {[%clk 0:02:51.6]} 10... Bh5 {[%clk 0:02:45.9]} 11. Re1
{[%clk 0:02:49.9]} 11... Re8 {[%clk 0:02:42]} 12. Bf4 {[%clk 0:02:46.6]} 12...
Nd7 {[%clk 0:02:37.3]} 13. Qd3 {[%clk 0:02:44.2]} 13... Nb6 {[%clk 0:02:33.8]}
14. Bb3 {[%clk 0:02:43.9]} 14... a5 {[%clk 0:02:33.6]} 15. a3 {[%clk 0:02:43.5]}
15... Qd7 {[%clk 0:02:17.1]} 16. c3 {[%clk 0:02:41.6]} 16... Bg6 {[%clk
0:02:15.8]} 17. Qd2 {[%clk 0:02:36]} 17... Nd5 {[%clk 0:02:08.5]} 18. Bg3 {[%clk
0:02:33.5]} 18... Bd6 {[%clk 0:02:08.7]} 19. Bxd6 {[%clk 0:02:31.7]} 19... Qxd6
{[%clk 0:02:08.3]} 20. Rxe8+ {[%clk 0:02:32.2]} 20... Rxe8 {[%clk 0:02:07.7]}
21. Re1 {[%clk 0:02:32.6]} 21... Rxe1+ {[%clk 0:02:01.1]} 22. Qxe1 {[%clk
0:02:32.5]} 22... Qd8 {[%clk 0:01:23.2]} 23. Nd2 {[%clk 0:02:07.4]} 23... h6
{[%clk 0:01:14.4]} 24. Nc4 {[%clk 0:02:06.5]} 24... b5 {[%clk 0:01:12]} 25. Ne3
{[%clk 0:02:05.6]} 25... Nf4 {[%clk 0:01:03.9]} 26. Qd2 {[%clk 0:02:02.8]} 26...
a4 {[%clk 0:01:03]} 27. Bd1 {[%clk 0:02:01.1]} 27... Qd6 {[%clk 0:00:41.8]} 28.
Bf3 {[%clk 0:01:58.7]} 28... Kf8 {[%clk 0:00:33.7]} 29. h4 {[%clk 0:01:58.4]}
29... h5 {[%clk 0:00:32.8]} 30. g3 {[%clk 0:01:58.3]} 30... Nd5 {[%clk
0:00:25.3]} 31. Kg2 {[%clk 0:01:47.9]} 31... Nxe3+ {[%clk 0:00:24.7]} 32. Qxe3
{[%clk 0:01:47.6]} 32... Qd7 {[%clk 0:00:19.8]} 33. Qf4 {[%clk 0:01:45]} 33...
Ke7 {[%clk 0:00:18.9]} 34. Qb8 {[%clk 0:01:40.7]} 34... Qd6 {[%clk 0:00:18]} 35.
Qb7+ {[%clk 0:01:37.8]} 35... Ke6 {[%clk 0:00:15.6]} 36. Qxc6 {[%clk 0:01:37.3]}
36... Bd3 {[%clk 0:00:12.2]} 37. Bd5+ {[%clk 0:01:26.6]} 37... Ke7 {[%clk
0:00:11.1]} 38. Qxd6+ {[%clk 0:01:24]} 38... Kxd6 {[%clk 0:00:12]} 39. Bxf7
{[%clk 0:01:24.1]} 39... g6 {[%clk 0:00:11.1]} 40. f3 {[%clk 0:01:22.5]} 40...
Bf5 {[%clk 0:00:10.4]} 41. Kf2 {[%clk 0:01:20.9]} 41... Bc2 {[%clk 0:00:10.6]}
42. Ke3 {[%clk 0:01:20.9]} 42... Bb1 {[%clk 0:00:11]} 43. g4 {[%clk 0:01:20.2]}
43... hxg4 {[%clk 0:00:10.5]} 44. fxg4 {[%clk 0:01:20.5]} 44... Bc2 {[%clk
0:00:11.4]} 45. h5 {[%clk 0:01:18.6]} 45... gxh5 {[%clk 0:00:12.3]} 46. gxh5
{[%clk 0:01:18.6]} 46... Ke7 {[%clk 0:00:12.8]} 47. Bg6 {[%clk 0:01:18.1]} 47...
Bb3 {[%clk 0:00:13.1]} 48. h6 {[%clk 0:01:18]} 48... Kf8 {[%clk 0:00:13.6]} 49.
Kf4 {[%clk 0:01:16.6]} 49... Be6 {[%clk 0:00:13.1]} 50. Ke4 {[%clk 0:01:15.6]}
50... Bd7 {[%clk 0:00:08.1]} 51. d5 {[%clk 0:01:15]} 1-0

[Event "*** Titled Tuesday Blitz"]
[Site "Chess.com"]
[Date "2020.04.21"]
[Round "6"]
[White "ChessWarrior7197"]
[Black "GMMarcinDziuba"]
[Result "1-0"]
[WhiteElo "2882"]
[BlackElo "2689"]
[TimeControl "180+1"]
[EndTime "11:08:16 PDT"]
[Termination "ChessWarrior7197 won by checkmate"]

1. e4 {[%clk 0:03:00.9]} 1... c5 {[%clk 0:02:59.9]} 2. Nf3 {[%clk 0:03:00.4]}
2... d6 {[%clk 0:03:00.2]} 3. d4 {[%clk 0:03:00.6]} 3... cxd4 {[%clk 0:03:01.1]}
4. Nxd4 {[%clk 0:03:01.5]} 4... Nf6 {[%clk 0:03:01.6]} 5. Nc3 {[%clk 0:03:01.3]}
5... a6 {[%clk 0:03:02.1]} 6. Bd3 {[%clk 0:03:01.5]} 6... g6 {[%clk 0:02:57.5]}
7. f3 {[%clk 0:02:59.6]} 7... Bg7 {[%clk 0:02:57]} 8. Be3 {[%clk 0:02:57.2]}
8... e5 {[%clk 0:02:23.5]} 9. Nde2 {[%clk 0:02:47.8]} 9... Be6 {[%clk
0:02:22.3]} 10. Qd2 {[%clk 0:02:46.2]} 10... Nc6 {[%clk 0:02:18.5]} 11. a4
{[%clk 0:02:32.4]} 11... d5 {[%clk 0:02:14.7]} 12. exd5 {[%clk 0:02:31.9]} 12...
Nxd5 {[%clk 0:02:14.3]} 13. Nxd5 {[%clk 0:02:32.4]} 13... Qxd5 {[%clk
0:02:13.1]} 14. Nc3 {[%clk 0:02:30.3]} 14... Qa5 {[%clk 0:02:08.4]} 15. Ne4
{[%clk 0:02:21.6]} 15... Qxd2+ {[%clk 0:01:52.8]} 16. Bxd2 {[%clk 0:02:22.5]}
16... Rd8 {[%clk 0:01:38.5]} 17. Bg5 {[%clk 0:02:14]} 17... Rd4 {[%clk 0:00:56]}
18. Be3 {[%clk 0:02:13.3]} 18... Rd8 {[%clk 0:00:47.6]} 19. Bc5 {[%clk
0:02:09.4]} 19... Kd7 {[%clk 0:00:30.1]} 20. Bb6 {[%clk 0:02:06.8]} 20... Rde8
{[%clk 0:00:28.3]} 21. O-O-O {[%clk 0:02:05.2]} 21... Nd4 {[%clk 0:00:24.4]} 22.
c3 {[%clk 0:02:05.1]} 22... Nb3+ {[%clk 0:00:23.6]} 23. Kc2 {[%clk 0:01:48.5]}
23... Kc6 {[%clk 0:00:23.7]} 24. a5 {[%clk 0:01:44.3]} 24... h6 {[%clk 0:00:22]}
25. Be2 {[%clk 0:01:16.9]} 25... Bf8 {[%clk 0:00:17]} 26. f4 {[%clk 0:01:16.2]}
26... exf4 {[%clk 0:00:14.7]} 27. Bf3 {[%clk 0:01:16.2]} 27... Bf5 {[%clk
0:00:13.8]} 28. Kxb3 {[%clk 0:01:00.3]} 28... Bxe4 {[%clk 0:00:13.8]} 29. Bxe4+
{[%clk 0:00:59.2]} 29... Rxe4 {[%clk 0:00:14.7]} 30. Rd8 {[%clk 0:00:49.7]}
30... Bg7 {[%clk 0:00:14.9]} 31. Rd3 {[%clk 0:00:49.7]} 31... Rhe8 {[%clk
0:00:13.8]} 32. Rhd1 {[%clk 0:00:49.5]} 32... R4e6 {[%clk 0:00:13.7]} 33. Ka4
{[%clk 0:00:44.5]} 33... Bf8 {[%clk 0:00:12.2]} 34. b4 {[%clk 0:00:44]} 34...
Bd6 {[%clk 0:00:11.8]} 35. c4 {[%clk 0:00:43.8]} 35... Be5 {[%clk 0:00:08.3]}
36. b5+ {[%clk 0:00:43.3]} 36... axb5+ {[%clk 0:00:08.5]} 37. cxb5# {[%clk
0:00:44.2]} 1-0

[Event "*** Titled Tuesday Blitz"]
[Site "Chess.com"]
[Date "2020.04.21"]
[Round "6"]
[White "crescentmoon2411"]
[Black "Boundless_Strike"]
[Result "1-0"]
[WhiteElo "2784"]
[BlackElo "2617"]
[TimeControl "180+1"]
[EndTime "11:08:17 PDT"]
[Termination "crescentmoon2411 won by resignation"]

1. e4 {[%clk 0:02:49]} 1... e6 {[%clk 0:02:59.9]} 2. d4 {[%clk 0:02:48.6]} 2...
d5 {[%clk 0:03:00.8]} 3. Nc3 {[%clk 0:02:48.5]} 3... Bb4 {[%clk 0:03:01.1]} 4.
e5 {[%clk 0:02:45.6]} 4... c5 {[%clk 0:03:01.7]} 5. a3 {[%clk 0:02:45.4]} 5...
Bxc3+ {[%clk 0:03:02.3]} 6. bxc3 {[%clk 0:02:46.3]} 6... Ne7 {[%clk 0:03:03.1]}
7. Qg4 {[%clk 0:02:45]} 7... cxd4 {[%clk 0:03:03.7]} 8. Bd3 {[%clk 0:02:34.7]}
8... Nbc6 {[%clk 0:02:43.3]} 9. cxd4 {[%clk 0:02:27.4]} 9... O-O {[%clk
0:02:33.3]} 10. Nf3 {[%clk 0:02:24.8]} 10... f5 {[%clk 0:02:33.6]} 11. exf6
{[%clk 0:02:14.2]} 11... Rxf6 {[%clk 0:02:33.2]} 12. Qh5 {[%clk 0:02:04.8]}
12... g6 {[%clk 0:02:21.1]} 13. Qh4 {[%clk 0:02:01.2]} 13... Nf5 {[%clk
0:02:19.9]} 14. Bxf5 {[%clk 0:01:58.4]} 14... Rxf5 {[%clk 0:02:20.8]} 15. Qxd8+
{[%clk 0:01:57.4]} 15... Nxd8 {[%clk 0:02:20.6]} 16. Ne5 {[%clk 0:01:55.3]}
16... Nc6 {[%clk 0:02:05.7]} 17. Nxc6 {[%clk 0:01:49.8]} 17... bxc6 {[%clk
0:02:06.6]} 18. Be3 {[%clk 0:01:30.3]} 18... h5 {[%clk 0:01:48.7]} 19. h4 {[%clk
0:01:27.9]} 19... e5 {[%clk 0:01:48]} 20. Kd2 {[%clk 0:01:21.6]} 20... c5 {[%clk
0:01:28.8]} 21. c3 {[%clk 0:01:21.8]} 21... exd4 {[%clk 0:01:18.9]} 22. cxd4
{[%clk 0:01:22.7]} 22... c4 {[%clk 0:01:19.4]} 23. Rhb1 {[%clk 0:01:19.1]} 23...
Rf6 {[%clk 0:00:34.7]} 24. a4 {[%clk 0:01:15.7]} 24... Bf5 {[%clk 0:00:23.6]}
25. Rb5 {[%clk 0:01:15.7]} 25... Rd6 {[%clk 0:00:23.3]} 26. Ra2 {[%clk
0:01:09.5]} 26... Be4 {[%clk 0:00:19.6]} 27. f3 {[%clk 0:01:07.5]} 27... Bf5
{[%clk 0:00:18.7]} 28. Bf4 {[%clk 0:01:05.3]} 28... Rb6 {[%clk 0:00:18.1]} 29.
Rab2 {[%clk 0:01:02.3]} 29... Rxb5 {[%clk 0:00:18.2]} 30. Rxb5 {[%clk
0:01:03.2]} 30... Rd8 {[%clk 0:00:18.8]} 31. Kc3 {[%clk 0:01:02.8]} 31... Rd7
{[%clk 0:00:18.8]} 32. Be5 {[%clk 0:01:01.7]} 32... Kf7 {[%clk 0:00:19.3]} 33.
a5 {[%clk 0:01:02.1]} 33... Re7 {[%clk 0:00:13.9]} 34. Rxd5 {[%clk 0:01:00.3]}
34... Be6 {[%clk 0:00:13.1]} 35. Rb5 {[%clk 0:01:00]} 35... Rd7 {[%clk
0:00:13.8]} 36. a6 {[%clk 0:00:59.4]} 36... Bd5 {[%clk 0:00:13.7]} 37. Bb8
{[%clk 0:00:58.5]} 37... Ke6 {[%clk 0:00:13.6]} 38. Rc5 {[%clk 0:00:51.8]} 38...
Rg7 {[%clk 0:00:13.3]} 39. Rc8 {[%clk 0:00:49.9]} 39... g5 {[%clk 0:00:13.7]}
40. Rd8 {[%clk 0:00:49.6]} 40... Ba8 {[%clk 0:00:07.9]} 41. Be5 {[%clk
0:00:48.8]} 1-0

[Event "*** Titled Tuesday Blitz"]
[Site "Chess.com"]
[Date "2020.04.21"]
[Round "6"]
[White "Angel_Hranitel_37"]
[Black "mirochka"]
[Result "1-0"]
[WhiteElo "2375"]
[BlackElo "2174"]
[TimeControl "180+1"]
[EndTime "11:08:20 PDT"]
[Termination "Angel_Hranitel_37 won on time"]

1. d4 {[%clk 0:03:00.9]} 1... Nf6 {[%clk 0:02:59.4]} 2. Nf3 {[%clk 0:03:00.6]}
2... d5 {[%clk 0:02:58.9]} 3. g3 {[%clk 0:03:01.1]} 3... e6 {[%clk 0:02:56]} 4.
Bg2 {[%clk 0:03:02]} 4... Be7 {[%clk 0:02:55.7]} 5. O-O {[%clk 0:03:00.2]} 5...
O-O {[%clk 0:02:54.7]} 6. c4 {[%clk 0:03:01.1]} 6... b6 {[%clk 0:02:36.6]} 7.
Ne5 {[%clk 0:02:59.7]} 7... Bb7 {[%clk 0:02:33.9]} 8. Nc3 {[%clk 0:02:58.5]}
8... Nbd7 {[%clk 0:02:30.6]} 9. cxd5 {[%clk 0:02:57.4]} 9... exd5 {[%clk
0:02:29.4]} 10. Nd3 {[%clk 0:02:57.6]} 10... c5 {[%clk 0:02:23.2]} 11. dxc5
{[%clk 0:02:57.8]} 11... bxc5 {[%clk 0:02:20.7]} 12. Qa4 {[%clk 0:02:34]} 12...
Nb6 {[%clk 0:02:04.8]} 13. Qa5 {[%clk 0:02:33.4]} 13... Nc4 {[%clk 0:02:03.5]}
14. Qxd8 {[%clk 0:02:32.1]} 14... Rfxd8 {[%clk 0:02:00.5]} 15. b3 {[%clk
0:02:32.3]} 15... Nb6 {[%clk 0:01:56.3]} 16. Nb5 {[%clk 0:02:28.8]} 16... Ne4
{[%clk 0:01:21.7]} 17. Ba3 {[%clk 0:02:23.7]} 17... Bf6 {[%clk 0:01:08.5]} 18.
Rac1 {[%clk 0:02:22.2]} 18... c4 {[%clk 0:01:08.6]} 19. Nc5 {[%clk 0:02:12.7]}
19... Nxc5 {[%clk 0:01:03.6]} 20. Bxc5 {[%clk 0:02:13.6]} 20... Rac8 {[%clk
0:00:41.8]} 21. Bxb6 {[%clk 0:02:00.8]} 21... axb6 {[%clk 0:00:40.8]} 22. bxc4
{[%clk 0:02:01.7]} 22... Rc5 {[%clk 0:00:32.5]} 23. a4 {[%clk 0:01:43.2]} 23...
Bc6 {[%clk 0:00:20.3]} 24. cxd5 {[%clk 0:01:43.4]} 24... Bxd5 {[%clk 0:00:18.5]}
25. Bxd5 {[%clk 0:01:11.9]} 25... Rcxd5 {[%clk 0:00:19.4]} 26. Rc6 {[%clk
0:01:08.5]} 26... Rb8 {[%clk 0:00:13.2]} 27. Rfc1 {[%clk 0:01:08.8]} 27... h6
{[%clk 0:00:12.6]} 28. Rc8+ {[%clk 0:01:09.1]} 28... Rxc8 {[%clk 0:00:12.8]} 29.
Rxc8+ {[%clk 0:01:10]} 29... Kh7 {[%clk 0:00:13.2]} 30. Ra8 {[%clk 0:01:07.2]}
30... Rd1+ {[%clk 0:00:12.7]} 31. Kg2 {[%clk 0:01:06.7]} 31... Ra1 {[%clk
0:00:12.2]} 32. Ra6 {[%clk 0:01:06.1]} 32... h5 {[%clk 0:00:09.6]} 33. h4 {[%clk
0:01:05.5]} 33... Ra2 {[%clk 0:00:07.9]} 34. e3 {[%clk 0:01:05]} 34... Kg6
{[%clk 0:00:04.5]} 35. Kf1 {[%clk 0:00:56.1]} 35... Kh7 {[%clk 0:00:04.2]} 36.
Nc7 {[%clk 0:00:55.5]} 36... Ra1+ {[%clk 0:00:04]} 37. Kg2 {[%clk 0:00:54.5]}
37... Ra2 {[%clk 0:00:04.4]} 38. Nd5 {[%clk 0:00:54.7]} 38... Be5 {[%clk
0:00:03.6]} 39. Nxb6 {[%clk 0:00:53.7]} 1-0

[Event "*** Titled Tuesday Blitz"]
[Site "Chess.com"]
[Date "2020.04.21"]
[Round "6"]
[White "inegrepus"]
[Black "LifeIsAllAboutChess23"]
[Result "1-0"]
[WhiteElo "2266"]
[BlackElo "2011"]
[TimeControl "180+1"]
[EndTime "11:08:21 PDT"]
[Termination "inegrepus won by checkmate"]

1. d4 {[%clk 0:03:00.7]} 1... f5 {[%clk 0:02:59.1]} 2. e4 {[%clk 0:02:58.6]}
2... fxe4 {[%clk 0:02:57.9]} 3. Nc3 {[%clk 0:02:58.6]} 3... d5 {[%clk
0:02:57.7]} 4. f3 {[%clk 0:02:51.9]} 4... Nf6 {[%clk 0:02:52.9]} 5. Bg5 {[%clk
0:02:46]} 5... Bf5 {[%clk 0:02:51]} 6. fxe4 {[%clk 0:02:42.9]} 6... dxe4 {[%clk
0:02:48.9]} 7. Bc4 {[%clk 0:02:38.6]} 7... Nc6 {[%clk 0:02:45.3]} 8. Nge2 {[%clk
0:02:33.2]} 8... e5 {[%clk 0:02:39.2]} 9. O-O {[%clk 0:02:19.6]} 9... exd4
{[%clk 0:02:36.9]} 10. Rxf5 {[%clk 0:02:16.8]} 10... dxc3 {[%clk 0:02:36.9]} 11.
Nxc3 {[%clk 0:02:15.5]} 11... Qd4+ {[%clk 0:02:30.2]} 12. Qxd4 {[%clk
0:02:07.3]} 12... Nxd4 {[%clk 0:02:31.1]} 13. Re5+ {[%clk 0:02:05.8]} 13... Kd7
{[%clk 0:02:30.8]} 14. Bxf6 {[%clk 0:02:01.8]} 14... gxf6 {[%clk 0:02:29.1]} 15.
Rxe4 {[%clk 0:02:01.7]} 15... Bc5 {[%clk 0:02:26.8]} 16. Rd1 {[%clk 0:01:58.2]}
16... Rae8 {[%clk 0:02:20.3]} 17. Rexd4+ {[%clk 0:01:57.7]} 17... Bxd4+ {[%clk
0:02:19.7]} 18. Rxd4+ {[%clk 0:01:57.5]} 18... Kc8 {[%clk 0:02:19.3]} 19. Be2
{[%clk 0:01:40.9]} 19... Re5 {[%clk 0:02:06]} 20. Bg4+ {[%clk 0:01:33.1]} 20...
f5 {[%clk 0:02:04.5]} 21. Bh3 {[%clk 0:01:33.3]} 21... Rf8 {[%clk 0:02:02.2]}
22. Rf4 {[%clk 0:01:29.7]} 22... Kd7 {[%clk 0:01:55.4]} 23. Ne4 {[%clk
0:01:26.6]} 23... h6 {[%clk 0:01:54.4]} 24. Ng3 {[%clk 0:01:21.3]} 24... Ke6
{[%clk 0:01:51.1]} 25. Nxf5 {[%clk 0:01:18.7]} 25... Rexf5 {[%clk 0:01:36]} 26.
Kf2 {[%clk 0:01:14.6]} 26... Ke5 {[%clk 0:01:30.4]} 27. Rxf5+ {[%clk 0:01:14.8]}
27... Rxf5+ {[%clk 0:01:30.5]} 28. Bxf5 {[%clk 0:01:15.7]} 28... Kxf5 {[%clk
0:01:31.4]} 29. Kf3 {[%clk 0:01:16.2]} 29... h5 {[%clk 0:01:30.6]} 30. g3 {[%clk
0:01:16.4]} 30... Kg5 {[%clk 0:01:30]} 31. h3 {[%clk 0:01:16.4]} 31... Kf5
{[%clk 0:01:30.1]} 32. g4+ {[%clk 0:01:16.3]} 32... Kg5 {[%clk 0:01:27.6]} 33.
Kg3 {[%clk 0:01:11]} 33... hxg4 {[%clk 0:01:27.2]} 34. hxg4 {[%clk 0:01:11.1]}
34... a6 {[%clk 0:01:27.4]} 35. Kf3 {[%clk 0:01:08.2]} 35... b6 {[%clk
0:01:25.5]} 36. Kg3 {[%clk 0:01:06]} 36... c6 {[%clk 0:01:24.9]} 37. Kf3 {[%clk
0:01:06.2]} 37... a5 {[%clk 0:01:24.2]} 38. a4 {[%clk 0:01:04.7]} 38... b5
{[%clk 0:01:23.3]} 39. b3 {[%clk 0:01:04.6]} 39... bxa4 {[%clk 0:01:12]} 40.
bxa4 {[%clk 0:01:04.5]} 40... c5 {[%clk 0:01:08.8]} 41. c4 {[%clk 0:01:04.7]}
41... Kg6 {[%clk 0:01:07]} 42. Ke4 {[%clk 0:01:04.9]} 42... Kf6 {[%clk
0:01:07.2]} 43. Kd5 {[%clk 0:01:04.9]} 43... Kg5 {[%clk 0:01:08.1]} 44. Kxc5
{[%clk 0:01:05.1]} 44... Kxg4 {[%clk 0:01:09]} 45. Kb6 {[%clk 0:01:05.3]} 45...
Kf5 {[%clk 0:01:09.9]} 46. c5 {[%clk 0:01:05.7]} 46... Ke6 {[%clk 0:01:06.7]}
47. c6 {[%clk 0:01:05.8]} 47... Kd5 {[%clk 0:01:06.4]} 48. c7 {[%clk 0:01:04.5]}
48... Kc4 {[%clk 0:01:04]} 49. Kxa5 {[%clk 0:01:04.7]} 49... Kb3 {[%clk
0:01:02.6]} 50. c8=Q {[%clk 0:01:04.7]} 50... Ka3 {[%clk 0:01:02.9]} 51. Qc3+
{[%clk 0:01:04.2]} 51... Ka2 {[%clk 0:01:02.4]} 52. Kb4 {[%clk 0:01:03]} 52...
Kb1 {[%clk 0:01:01.5]} 53. Qd2 {[%clk 0:01:03.4]} 53... Ka1 {[%clk 0:01:01.2]}
54. Kb3 {[%clk 0:01:04.3]} 54... Kb1 {[%clk 0:01:02.1]} 55. Qe1# {[%clk
0:01:04.6]} 1-0

[Event "*** Titled Tuesday Blitz"]
[Site "Chess.com"]
[Date "2020.04.21"]
[Round "6"]
[White "rasmussvane"]
[Black "Nikolakis2014"]
[Result "0-1"]
[WhiteElo "2862"]
[BlackElo "2704"]
[TimeControl "180+1"]
[EndTime "11:08:22 PDT"]
[Termination "Nikolakis2014 won on time"]

1. Nf3 {[%clk 0:03:00.9]} 1... Nf6 {[%clk 0:03:00.1]} 2. g3 {[%clk 0:02:59.3]}
2... e6 {[%clk 0:02:59.6]} 3. Bg2 {[%clk 0:03:00]} 3... d5 {[%clk 0:02:59.9]} 4.
O-O {[%clk 0:03:00.5]} 4... Be7 {[%clk 0:02:59]} 5. c4 {[%clk 0:03:00.9]} 5...
O-O {[%clk 0:02:58.6]} 6. b3 {[%clk 0:03:01]} 6... c5 {[%clk 0:02:58]} 7. cxd5
{[%clk 0:03:01.5]} 7... exd5 {[%clk 0:02:55.5]} 8. d4 {[%clk 0:03:00.9]} 8...
Nc6 {[%clk 0:02:55.6]} 9. Bb2 {[%clk 0:03:00.6]} 9... Ne4 {[%clk 0:02:55.2]} 10.
Nc3 {[%clk 0:03:00.4]} 10... Bf6 {[%clk 0:02:55.4]} 11. Na4 {[%clk 0:02:59.4]}
11... b6 {[%clk 0:02:54.9]} 12. Rc1 {[%clk 0:02:58]} 12... Re8 {[%clk
0:02:54.4]} 13. dxc5 {[%clk 0:02:48.4]} 13... Bxb2 {[%clk 0:02:54.1]} 14. Nxb2
{[%clk 0:02:49.3]} 14... bxc5 {[%clk 0:02:54.3]} 15. Na4 {[%clk 0:02:49.6]}
15... Ba6 {[%clk 0:02:53.8]} 16. Re1 {[%clk 0:02:45.6]} 16... c4 {[%clk
0:02:52.8]} 17. Nd4 {[%clk 0:02:09.9]} 17... Qf6 {[%clk 0:02:24.5]} 18. Bxe4
{[%clk 0:01:13.5]} 18... Nxd4 {[%clk 0:01:54.5]} 19. Bxd5 {[%clk 0:01:13.4]}
19... Rad8 {[%clk 0:01:54.4]} 20. Nc3 {[%clk 0:00:51]} 20... cxb3 {[%clk
0:01:46.3]} 21. axb3 {[%clk 0:00:51.9]} 21... h5 {[%clk 0:01:06.5]} 22. e3
{[%clk 0:00:51]} 22... Rxd5 {[%clk 0:01:02]} 23. Nxd5 {[%clk 0:00:39.9]} 23...
Nf3+ {[%clk 0:01:01.7]} 24. Kh1 {[%clk 0:00:21.9]} 24... Qf5 {[%clk 0:00:57.6]}
25. Nf4 {[%clk 0:00:07.1]} 25... Nxe1 {[%clk 0:00:53.2]} 26. Qxe1 {[%clk
0:00:08]} 26... Bb7+ {[%clk 0:00:52.7]} 27. Kg1 {[%clk 0:00:06.7]} 27... Qe4
{[%clk 0:00:52.8]} 28. f3 {[%clk 0:00:02.5]} 28... Qxf3 {[%clk 0:00:51.7]} 29.
Qd2 {[%clk 0:00:02.2]} 29... Qh1+ {[%clk 0:00:48.7]} 30. Kf2 {[%clk 0:00:02.6]}
30... Qxh2+ {[%clk 0:00:48.9]} 31. Ke1 {[%clk 0:00:03]} 31... Qxg3+ {[%clk
0:00:47.1]} 32. Kf1 {[%clk 0:00:03.3]} 32... Ba6+ {[%clk 0:00:43.7]} 33. Ne2
{[%clk 0:00:02.6]} 33... Rxe3 {[%clk 0:00:41.2]} 34. Rc8+ {[%clk 0:00:01.1]}
34... Kh7 {[%clk 0:00:40.7]} 35. Qc2+ {[%clk 0:00:01]} 35... g6 {[%clk
0:00:40.7]} 36. Rh8+ {[%clk 0:00:01.4]} 36... Kxh8 {[%clk 0:00:39.1]} 0-1

[Event "*** Titled Tuesday Blitz"]
[Site "Chess.com"]
[Date "2020.04.21"]
[Round "6"]
[White "annamaja"]
[Black "juniortay"]
[Result "1-0"]
[WhiteElo "2236"]
[BlackElo "2395"]
[TimeControl "180+1"]
[EndTime "11:08:22 PDT"]
[Termination "annamaja won by checkmate"]

1. e4 {[%clk 0:03:00.9]} 1... e5 {[%clk 0:02:59.7]} 2. Nf3 {[%clk 0:03:00.9]}
2... Nf6 {[%clk 0:03:00]} 3. Nxe5 {[%clk 0:02:48.2]} 3... Nc6 {[%clk 0:02:59.7]}
4. Nxc6 {[%clk 0:02:46.2]} 4... dxc6 {[%clk 0:03:00.6]} 5. Nc3 {[%clk
0:02:45.4]} 5... Bc5 {[%clk 0:03:00.6]} 6. Be2 {[%clk 0:02:36.1]} 6... Qd4
{[%clk 0:02:59.6]} 7. O-O {[%clk 0:02:29.5]} 7... h5 {[%clk 0:02:59.7]} 8. d3
{[%clk 0:02:22.9]} 8... Ng4 {[%clk 0:02:59.4]} 9. Bxg4 {[%clk 0:02:07.2]} 9...
hxg4 {[%clk 0:03:00.3]} 10. g3 {[%clk 0:01:55.2]} 10... Qe5 {[%clk 0:02:53.1]}
11. Bf4 {[%clk 0:01:17.5]} 11... Qh5 {[%clk 0:02:52.7]} 12. h4 {[%clk
0:01:17.5]} 12... Be7 {[%clk 0:02:52.7]} 13. Kg2 {[%clk 0:01:11]} 13... g5
{[%clk 0:02:51.2]} 14. Bxc7 {[%clk 0:00:53.1]} 14... gxh4 {[%clk 0:02:51.1]} 15.
Rh1 {[%clk 0:00:50.6]} 15... h3+ {[%clk 0:02:50.5]} 16. Kh2 {[%clk 0:00:48.2]}
16... Be6 {[%clk 0:02:50.9]} 17. Ne2 {[%clk 0:00:41.1]} 17... Qb5 {[%clk
0:02:35.1]} 18. Nf4 {[%clk 0:00:26.9]} 18... Bd7 {[%clk 0:02:34.5]} 19. d4
{[%clk 0:00:20.6]} 19... Rg8 {[%clk 0:02:30.5]} 20. a4 {[%clk 0:00:18.8]} 20...
Qg5 {[%clk 0:02:27.1]} 21. Nd3 {[%clk 0:00:15.8]} 21... Qf6 {[%clk 0:02:19.3]}
22. Be5 {[%clk 0:00:14.7]} 22... Qg6 {[%clk 0:02:17.3]} 23. Qe2 {[%clk
0:00:13.8]} 23... O-O-O {[%clk 0:02:15.6]} 24. a5 {[%clk 0:00:12.6]} 24... f5
{[%clk 0:02:15.7]} 25. Bf4 {[%clk 0:00:10.9]} 25... fxe4 {[%clk 0:02:10.5]} 26.
Ne5 {[%clk 0:00:11.3]} 26... Qf5 {[%clk 0:02:11]} 27. a6 {[%clk 0:00:11.2]}
27... b6 {[%clk 0:02:10.2]} 28. Qc4 {[%clk 0:00:08.9]} 28... Qe6 {[%clk
0:01:56.3]} 29. Qxe6 {[%clk 0:00:08.3]} 29... Bxe6 {[%clk 0:01:55.1]} 30. Nxc6
{[%clk 0:00:08.9]} 30... Rd7 {[%clk 0:01:52.2]} 31. Nxe7+ {[%clk 0:00:07.3]}
31... Rxe7 {[%clk 0:01:53.1]} 32. c3 {[%clk 0:00:07]} 32... Bd5 {[%clk
0:01:49.8]} 33. Rhe1 {[%clk 0:00:07.5]} 33... Re6 {[%clk 0:01:46.7]} 34. Ra3
{[%clk 0:00:06.5]} 34... Rc6 {[%clk 0:01:46.1]} 35. Re3 {[%clk 0:00:06.4]} 35...
Kd7 {[%clk 0:01:46]} 36. b3 {[%clk 0:00:06.6]} 36... b5 {[%clk 0:01:43.9]} 37.
Ra5 {[%clk 0:00:06]} 37... Rb6 {[%clk 0:01:40.3]} 38. c4 {[%clk 0:00:06.4]}
38... bxc4 {[%clk 0:01:39.4]} 39. Rxd5+ {[%clk 0:00:05.7]} 39... Kc6 {[%clk
0:01:36.4]} 40. Rd6+ {[%clk 0:00:04]} 40... Kb5 {[%clk 0:01:35.6]} 41. bxc4+
{[%clk 0:00:04.2]} 41... Kxc4 {[%clk 0:01:36.5]} 42. Rxb6 {[%clk 0:00:04.4]}
42... axb6 {[%clk 0:01:36.1]} 43. Ra3 {[%clk 0:00:04.8]} 43... Kb4 {[%clk
0:01:33.9]} 44. Bd6+ {[%clk 0:00:02.9]} 44... Kb5 {[%clk 0:01:32.2]} 45. a7
{[%clk 0:00:03.4]} 45... Ra8 {[%clk 0:01:32.4]} 46. Bb8 {[%clk 0:00:03.5]} 46...
Kc4 {[%clk 0:01:32]} 47. Ra4+ {[%clk 0:00:02.7]} 47... Kd5 {[%clk 0:01:30.6]}
48. Rb4 {[%clk 0:00:01.2]} 48... b5 {[%clk 0:01:31.5]} 49. Rxb5+ {[%clk
0:00:01.7]} 49... Kxd4 {[%clk 0:01:32.2]} 50. Rf5 {[%clk 0:00:02.1]} 50... Kd3
{[%clk 0:01:31.3]} 51. Rf4 {[%clk 0:00:02.5]} 51... Kd4 {[%clk 0:01:28.9]} 52.
Rxg4 {[%clk 0:00:02.8]} 52... Kd3 {[%clk 0:01:29.8]} 53. Rf4 {[%clk 0:00:03.5]}
53... e3 {[%clk 0:01:30]} 54. fxe3 {[%clk 0:00:03.6]} 54... Kxe3 {[%clk
0:01:30.8]} 55. Rf8 {[%clk 0:00:04.2]} 55... Ke4 {[%clk 0:01:30.6]} 56. Kxh3
{[%clk 0:00:04.6]} 56... Kd5 {[%clk 0:01:29.9]} 57. g4 {[%clk 0:00:05]} 57...
Kc6 {[%clk 0:01:30.8]} 58. g5 {[%clk 0:00:05.5]} 58... Kb7 {[%clk 0:01:31.7]}
59. g6 {[%clk 0:00:06.1]} 59... Kc6 {[%clk 0:01:32.6]} 60. g7 {[%clk 0:00:06.4]}
60... Kb7 {[%clk 0:01:33.5]} 61. g8=Q {[%clk 0:00:06.7]} 61... Kc6 {[%clk
0:01:34.4]} 62. Qe6+ {[%clk 0:00:06.8]} 62... Kb7 {[%clk 0:01:35.3]} 63. Rf7#
{[%clk 0:00:07.3]} 1-0